Cogmind - Beta 15 @@@ ROGUE MODE // 2025.10.02 @ 06:27:44 Player: ForestDarkPsy Result: Self-destructed Performance ------------- Evolutions (2) 1000 Regions Visited (4) 800 Robots Destroyed (16) 80 Value Destroyed (494) 494 Prototype IDs (2) 40 Alien Tech Used (0) 0 Bonus (0) 0 TOTAL SCORE: 2414 Bonus ------- None Cogmind --------- Core Integrity 433/550 Matter 255/300 Energy 86/100 System Corruption 0% Temperature Cool (16) Movement Core (50) Location -8/Materials Parts ------- > --- POWER (1) -------- (None) > --- PROPULSION (4) --- (None) > --- UTILITY (4) ------ Visual Processing Unit > --- WEAPON (2) ------- (None) > --- INVENTORY (5) ---- Shock Rifle Medium Laser Subdweller Beam Cannon Flamer Peak State ------------ > --- POWER ------------ Ion Engine > --- PROPULSION ------- Aluminum Leg Aluminum Leg > --- UTILITY ---------- Improved Terrain Scanner Seismic Detector > --- WEAPON ----------- Medium Laser Medium Laser > --- INVENTORY -------- Light Ion Engine [Rating: 9] Favorites ----------- Power Ion Engine Engine Ion Engine Propulsion Aluminum Leg Leg Aluminum Leg Utility Heat Sink Device Heat Sink Processor Visual Processing Unit Protection Light Armor Plating Weapon Medium Laser Energy Gun Medium Laser Energy Cannon Subdweller Beam Cannon Ballistic Gun Subdweller Machine Gun Impact Weapon Hammer Build | -11 -10 -10 -10 -8 ------- Run | Yrd Mat Min Sub Mat Slots Evolved 4 | . . . . 4 Power . | . . . . . Propulsion 2 | . . . . 2 Utility 2 | . . . . 2 Weapon . | . . . . . Parts Attached 22 | 7 3 4 6 2 Power 2 | 1 . 1 . . Engine 2 | 1 . 1 . . Core . | . . . . . Reactor . | . . . . . Propulsion 4 | 2 1 . 1 . Treads . | . . . . . Leg 4 | 2 1 . 1 . Wheel . | . . . . . Hover . | . . . . . Flight . | . . . . . Utility 9 | 2 2 2 2 1 Device 7 | 2 2 2 1 . Storage . | . . . . . Processor 1 | . . . . 1 Hackware . | . . . . . Protection 1 | . . . 1 . Artifact . | . . . . . Weapon 7 | 2 . 1 3 1 Energy Gun 3 | 2 . 1 . . Energy Cannon 1 | . . . 1 . Ballistic Gun 2 | . . . 1 1 Ballistic Cannon . | . . . . . Launcher . | . . . . . Special Weapon . | . . . . . Impact Weapon 1 | . . . 1 . Slashing Weapon . | . . . . . Piercing Weapon . | . . . . . Special Melee Weapon . | . . . . . Unidentified Prototypes . | . . . . . Parts Lost 11 | . . . 6 5 Power 1 | . . . 1 . Propulsion 3 | . . . 2 1 Utility 3 | . . . 2 1 Weapon 4 | . . . 1 3 Highest Loss Streak 5 | . . . 2 5 To Critical Strikes . | . . . . . Average Backups 4 | . 3 4 4 4 Power . | . 1 . . . Propulsion . | . 1 1 . . Utility 1 | . . 1 1 . Weapon 1 | . . 1 2 4 Tool/Special . | . . . . . Unused Backups 4 | . . 1 1 2 Power 1 | . . 1 . . Propulsion . | . . . . . Utility . | . . . . . Weapon 3 | . . . 1 2 Tool/Special . | . . . . . Average Slot Usage (%) 86 | . 100 100 81 43 Engine 9 | . 14 14 7 . Leg 23 | . 28 28 22 8 Device 25 | . 28 28 26 9 Energy Gun 20 | . 28 28 16 . Energy Cannon 2 | . . . 4 . Ballistic Gun 2 | . . . 1 16 Peak Build Rating 9 | 9 9 8 8 8 Average Rating 7 | 5 7 7 7 7 On Entrance 6 | . 9 7 8 8 Naked Turns . | . . . . . Heaviest Build 15 | 11 11 13 15 9 Greatest Support 20 | 20 20 20 20 10 Greatest Overweight (x) 1 | 1 . . 1 . Average Overweight (x) . | . . . . . Largest Inventory Capacity 5 | 5 5 5 5 5 Average Capacity 5 | 5 5 5 5 5 Most Carried 5 | 1 5 5 5 5 Average Carried 4 | . 3 4 4 4 Final Capacity 5 | 5 5 5 5 5 Final Carried 5 | 1 4 5 5 4 Class Distribution -------------------- 70% | Mutant 29% | Scavenger-Mutant Dominant Class ---------------- Mutant | -10/Materials Mutant | -10/Mines Scavenger-Mutant | -10/Subcaves Mutant | -8/Materials Resources | -11 -10 -10 -10 -8 ----------- Run | Yrd Mat Min Sub Mat Matter Collected 377 | 238 52 50 37 . Remotely . | . . . . . Salvage Created 459 | 25 214 110 77 33 Parts 27 | 4 12 8 2 1 Haulers Intercepted . | . . . . . Recyclers Shooed . | . . . . . Parts Field Recycled . | . . . . . Retrieved Matter . | . . . . . Parts Self-Destructed 4 | . . . 4 . Prevented . | . . . . . Kills | -11 -10 -10 -10 -8 ------- Run | Yrd Mat Min Sub Mat Combat Hostiles Destroyed 13 | . 6 3 3 1 Guns 12 | . 6 3 2 1 Cannons 1 | . . . 1 . Classes Destroyed 7 | 1 3 2 1 . Tunneler 1 | 1 . . . . Watcher 2 | . 2 . . . Swarmer 3 | . 3 . . . Grunt 4 | . 3 . . 1 Sentry 2 | . . 2 . . Demolisher 1 | . . 1 . . Subdweller 3 | . . . 3 . Best Kill Streak 3 | 1 3 2 1 1 Combat Bots Only 3 | . 3 2 1 1 Max Kills in Single Turn 1 | 1 1 1 1 1 Gunslinging . | . . . . . Exploded . | . . . . . Melee . | . . . . . Uniques/NPCs Destroyed . | . . . . . Combat | -11 -10 -10 -10 -8 -------- Run | Yrd Mat Min Sub Mat Hostile Shots Fired 103 | . 22 11 45 25 Missed 30 | . 7 2 18 3 Hits 73 | . 15 9 27 22 Projectile 73 | . 15 9 27 22 AOE 2 | . . 1 1 . Critical Strikes 1 | . . . 1 . Damage Taken 1309 | . 132 164 626 387 Core 307 | . 30 15 145 117 Absorbed by Shields . | . . . . . Core Remaining (%) 62 | 100 . . 24 . Volleys Fired 51 | 1 18 5 19 8 Largest 2 | 2 2 2 2 2 Hottest 100 | 100 100 100 100 80 Shots Fired 87 | 2 36 10 25 14 Gun 74 | 2 36 10 12 14 Cannon 13 | . . . 13 . Launcher . | . . . . . Special . | . . . . . Kinetic 11 | . . . . 11 Thermal 76 | 2 36 10 25 3 Explosive . | . . . . . Electromagnetic . | . . . . . Robot Hit Streak 17 | 1 5 11 17 9 Robot Miss Streak 2 | . 2 . 1 1 Penetration Max . | . . . . . Secondary Targets 2 | . 1 . 1 . Max Gunslinging Chain 1 | . 1 . 1 . Shots Hit Robots 61 | 1 21 9 18 12 Core Hits 27 | 1 12 5 5 4 Critical Kills . | . . . . . Critical Parts Destroyed . | . . . . . Critical Strikes 4 | . 3 1 . . Burn 4 | . 3 1 . . Melee Attacks 4 | . . . 4 . Impact 4 | . . . 4 . Slashing . | . . . . . Piercing . | . . . . . Sneak Attacks . | . . . . . Combat Hostiles . | . . . . . Follow-up Attacks . | . . . . . Damage Inflicted 963 | 12 278 110 341 222 Guns 747 | 12 278 110 125 222 Cannons 216 | . . . 216 . Explosions . | . . . . . Melee . | . . . . . Ramming . | . . . . . Kinetic 185 | . . . . 185 Thermal 778 | 12 278 110 341 37 Explosive . | . . . . . Electromagnetic . | . . . . . Impact . | . . . . . Slashing . | . . . . . Piercing . | . . . . . Highest Corruption . | . . . . . Average Corruption . | . . . . . Corruption Purged . | . . . . . Corruption Blocked . | . . . . . Overload Shots . | . . . . . Overflow Damage . | . . . . . Projectiles . | . . . . . Explosions . | . . . . . Melee . | . . . . . Knockbacks . | . . . . . Impact . | . . . . . Kinetic . | . . . . . Secondary . | . . . . . Self-Inflicted Damage . | . . . . . Shots . | . . . . . Rammed . | . . . . . Targets Rammed . | . . . . . Kicked . | . . . . . Crushed . | . . . . . Highest Temperature 84 | 39 84 63 12 19 Average Temperature 25 | 20 29 29 6 11 Received Heat Transfer 420 | . 21 45 156 198 Siege Activations . | . . . . . Martial Activations . | . . . . . Shielding Activations . | . . . . . Robots Disrupted . | . . . . . Combat Hostiles . | . . . . . Robots Corrupted . | . . . . . Combat Hostiles . | . . . . . Parts Fried . | . . . . . Impact Corruptions . | . . . . . Robots Melted . | . . . . . Combat Hostiles . | . . . . . Parts Melted 9 | . 6 1 2 . Heat Transferred 2257 | 37 1036 407 666 111 Parts Sabotaged . | . . . . . Parts Stolen . | . . . . . Parts Stripped . | . . . . . Power Chain Reactions . | . . . . . Alert | -11 -10 -10 -10 -8 ------- Run | Yrd Mat Min Sub Mat Maximum Alert Level . | . . . . . Low Security (%) 100 | 100 100 100 . 100 Level 1 . | . . . . . Level 2 . | . . . . . Level 3 . | . . . . . Level 4 . | . . . . . Level 5 . | . . . . . High Security . | . . . . . Max Security . | . . . . . Peak Influence 100 | 5 100 40 . 20 Initial 29 | . . 29 . . Average 13 | . 19 13 . . Influence Increases 261 | 5 175 60 . 21 Destroy 0b10 Robot/C 200 | . 120 60 . 20 Destroy 0b10 Robot/NC 15 | 5 10 . . . Destroy Leader 24 | . 24 . . . Successful Hack 5 | . 5 . . . Destroy Structure 2 | . 1 . . 1 Lose Combat Pursuer 15 | . 15 . . . Influence Decreases 261 | 5 99 126 10 21 Entered New Map 53 | . . 47 6 . Time Decay 188 | 5 99 79 4 1 Lost Part 20 | . . . . 20 Squads Dispatched 1 | . . . . 1 Investigation . | . . . . . Extermination . | . . . . . Reinforcement 1 | . . . . 1 Assault . | . . . . . Garrison . | . . . . . Intercept . | . . . . . Searches Triggered . | . . . . . Construction Impeded . | . . . . . Haulers Reinforced . | . . . . . Active Scanning Responses . | . . . . . Cargo Convoy Interrupts . | . . . . . Stealth | -11 -10 -10 -10 -8 --------- Run | Yrd Mat Min Sub Mat Distress Signals 2 | . 2 . . . Communications Jammed . | . . . . . Distress Signals . | . . . . . Times Spotted 22 | . 11 3 4 4 Peak Tracking Total 3 | . 3 2 3 3 Tactical Retreats 1 | . 1 . . . Traps | -11 -10 -10 -10 -8 ------- Run | Yrd Mat Min Sub Mat Traps Triggered 1 | . . . 1 . Indirectly . | . . . . . Trap Hack Attempts . | . . . . . Triggered . | . . . . . Disarmed . | . . . . . Reprogrammed . | . . . . . Reused . | . . . . . Traps Extracted . | . . . . . Installed . | . . . . . Triggered . | . . . . . Machines | -11 -10 -10 -10 -8 ---------- Run | Yrd Mat Min Sub Mat Machines Disabled . | . . . . . Max in Single Turn . | . . . . . Machines Repaired . | . . . . . Machines Dismantled . | . . . . . Machines Sabotaged . | . . . . . Overloaded Fab Kills . | . . . . . Hacking | -11 -10 -10 -10 -8 --------- Run | Yrd Mat Min Sub Mat Machines Accessed 4 | . 4 . . . Terminals 4 | . 4 . . . Fabricators . | . . . . . Repair Stations . | . . . . . Recycling Units . | . . . . . Scanalyzers . | . . . . . Garrison Access . | . . . . . Total Hacks 16 | . 16 . . . Successful 6 | . 6 . . . Failed 10 | . 10 . . . Catastrophic 1 | . 1 . . . Database Lockouts . | . . . . . Manual 4 | . 4 . . . Terminals 16 | . 16 . . . Fabricators . | . . . . . Repair Stations . | . . . . . Recycling Units . | . . . . . Scanalyzers . | . . . . . Garrison Access . | . . . . . Terminal Hacks 4 | . 4 . . . Prototype ID Bank 1 | . 1 . . . Locate Traps 2 | . 2 . . . Zone Layout 1 | . 1 . . . Fabricator Hacks . | . . . . . Repair Station Hacks . | . . . . . Recycling Unit Hacks . | . . . . . Scanalyzer . | . . . . . Garrison Access Hacks . | . . . . . Unauthorized Hacks 2 | . 2 . . . Terminals 2 | . 2 . . . Botnet 2 | . 2 . . . Fabricators . | . . . . . Repair Stations . | . . . . . Recycling Units . | . . . . . Scanalyzers . | . . . . . Garrison Access . | . . . . . Data Cores Recovered . | . . . . . Used . | . . . . . Hacking Detections 4 | . 4 . . . Full Trace Events . | . . . . . Feedback Events . | . . . . . Feedback Blocked . | . . . . . Robot Schematics Acquired . | . . . . . Robots Built . | . . . . . Authchips . | . . . . . Time . | . . . . . Total Robot Build Rating . | . . . . . Part Schematics Acquired . | . . . . . Parts Built . | . . . . . Authchips . | . . . . . Time . | . . . . . Total Part Build Rating . | . . . . . Parts Repaired . | . . . . . Time . | . . . . . Parts Recycled . | . . . . . Recycled Matter . | . . . . . Retrieved Matter . | . . . . . Retrieved Components . | . . . . . Parts Scanalyzed . | . . . . . Part Schematics Acquired . | . . . . . Parts Damaged . | . . . . . Bothacking | -11 -10 -10 -10 -8 ------------ Run | Yrd Mat Min Sub Mat Used RIF Installer . | . . . . . Robots Hacked . | . . . . . Non-combat . | . . . . . Combat . | . . . . . Robot Hacks Applied . | . . . . . Relay Couplers Released . | . . . . . Fabnet Peak Effective % . | . . . . . Robots Rewired . | . . . . . Allies Hacked . | . . . . . Hacks Repelled . | . . . . . Allies | -11 -10 -10 -10 -8 -------- Run | Yrd Mat Min Sub Mat Total Allies . | . . . . . Largest Group . | . . . . . Highest-Rated Group . | . . . . . Highest-Rated Ally . | . . . . . Total Orders . | . . . . . Ally Attacks . | . . . . . Total Damage . | . . . . . Kills . | . . . . . Allies Corrupted . | . . . . . Allies Melted . | . . . . . Intel | -11 -10 -10 -10 -8 ------- Run | Yrd Mat Min Sub Mat Active Infowar (turns) 1716 | 32 599 232 694 159 Optics 280 | . . . 121 159 Sensors 197 | . 197 . . . Terrain 125 | 29 96 . . . Seismic 1436 | 32 599 232 573 . Robot Analysis Total . | . . . . . Derelict Logs Recovered 4 | . . 2 2 . Drone Launches . | . . . . . Drone Recoveries . | . . . . . Exploration | -11 -10 -10 -10 -8 ------------- Run | Yrd Mat Min Sub Mat Turns Passed 2125 | 77 599 232 1057 160 Spaces Moved 1387 | 55 366 174 684 108 Core 6 | 6 . . . . Treads . | . . . . . Legs 1381 | 49 366 174 684 108 Wheels . | . . . . . Hover . | . . . . . Flight . | . . . . . Fastest Speed 50 | 50 120 120 120 120 Average Speed 127 | 114 120 120 135 120 Slowest Speed 190 | 120 120 120 190 120 Overloaded Moves . | . . . . . Propulsion Burnouts . | . . . . . Robots Hopped . | . . . . . Potential Cave-ins . | . . . . . Cave-ins Triggered . | . . . . . Exploration Rate (%) 31 | 3 65 30 46 14 Regions Visited 4 Branch Regions 2 Pre-discovered Areas 2 | . . . 2 . Known Exits Taken . | . . . . . Unknown Exits Taken 4 | 1 1 1 1 . Scrap Searched . | . . . . . Spaces Dug 1 | . . . 1 . Terrain Destroyed 3 | . . . 2 1 Melee 1 | . . . 1 . Projectile 2 | . . . 1 1 AOE . | . . . . . Terrain Rammed . | . . . . . Walls Destroyed . | . . . . . Machines Disabled . | . . . . . Actions | -11 -10 -10 -10 -8 --------- Run | Yrd Mat Min Sub Mat Total 1644 | 63 491 189 777 124 Wait 155 | . 96 . 56 3 Move 1383 | 54 365 173 683 108 Hop . | . . . . . Pick Up 14 | 1 6 2 4 1 Fast Attach 10 | 7 . . 3 . Attach 7 | . 2 . 3 2 Detach 1 | . . . 1 . Swap 7 | . 1 4 1 1 Drop 12 | . 3 5 3 1 Fire 51 | 1 18 5 19 8 Melee 4 | . . . 4 . Ram . | . . . . . Kick . | . . . . . Crush . | . . . . . Escape Stasis . | . . . . . Rewire . | . . . . . Trap . | . . . . . Miscellaneous . | . . . . . Route ------- -11/Scrapyard -10/Materials (discovered 3 exits: [*Mat] / [*Min x2]) -10/Mines -10/Subcaves (discovered 2 exits: [*Mat x2]) -8/Materials (discovered 1 exit: Sto) History --------- Turn | Location | Event 30 | -11/Scrapyard | Discovered new exit (range 14) 78 | -11/Scrapyard | Entered Materials 256 | -10/Materials | Discovered new exit (range 6) 309 | -10/Materials | Build established: Mutant 326 | -10/Materials | Discovered new exit (range 5) 454 | -10/Materials | Discovered new exit (range 6) 677 | -10/Materials | Entered Mines 683 | -10/Mines | Learned Materials garrison access intel 686 | -10/Mines | Met a Derelict bent on vengeance 761 | -10/Mines | Assembled infested the area 890 | -10/Mines | Discovered new exit (range 6) 909 | -10/Mines | Entered Subcaves 910 | -10/Subcaves | Approached by a straggling Scientist 981 | -10/Subcaves | Learned Materials stockpile data 1128 | -10/Subcaves | Build established: Scavenger-Mutant 1232 | -10/Subcaves | Learned location of Zion (-7) 1232 | -10/Subcaves | Met a Zionite searching for "candidates" 1366 | -10/Subcaves | Discovered new exit (range 14) 1387 | -10/Subcaves | Learned location of Recycling (-8) 1468 | -10/Subcaves | Ambushed by Subdweller buried in earth 1490 | -10/Subcaves | A swath of the cavern ceiling suddenly collapsed 1545 | -10/Subcaves | Shifting Twisted Machinery released Shrapnel Trap 1560 | -10/Subcaves | Shifting Twisted Machinery released Sub. Optics 1601 | -10/Subcaves | Core integrity fell below 50% 1751 | -10/Subcaves | Build established: Mutant 1826 | -10/Subcaves | Shifting Twisted Machinery released Sub. Machine Gun 1829 | -10/Subcaves | Shifting Twisted Machinery released Sub. Machine Gun 1948 | -10/Subcaves | Discovered new exit (range 9) 1966 | -10/Subcaves | Entered Materials 1966 | -8/Materials | Evolved 4 slots: Propulsion x2, Utility x2 1967 | -8/Materials | Identified exit to Storage 1969 | -8/Materials | Loaded intel: 1 garrison access location 2126 | -8/Materials | Self-destructed Last Messages --------------- Loading Materials garrison access intel (x1)... 02018_ O-16 Technician: "IFF HANDSHAKE FAILED. SECURING TERMINAL." 02020_ O-16 Technician uses terminal to summon reinforcements. 02020_ ALERT: Hostiles spotted, dispatching reinforcements to Terminal M008. 02020_ O-16 Technician locks terminal. 02022_ Acquired Shock Rifle. 02073_ K-01 Serf collects debris. 02112_ U-05 Engineer builds a Wall. 02112_ G-47 Trooper destroyed. 02113_ K-01 Serf collects debris. 02113_ Aluminum Leg destroyed. 02116_ K-01 Serf collects debris. 02117_ Sub. Machine Gun destroyed. 02119_ K-01 Serf collects debris. 02119_ Sub. Machine Gun destroyed. 02121_ Heat Sink destroyed. 02122_ K-01 Serf collects debris. 02125_ Med. Laser destroyed. 02125_ K-01 Serf collects debris. Map ----- +----------------------------------------------------+ | ?????????????????????????????????????????????????# | | ?????????????????????????????????????????????????# | | ?????????????????????????????????????????????????# | | ????????????????????????????????????????########## | | ????????????????????????????????????????# # | | ????????????????????????????????????????# """ T # | | ????????????????????????????????????????# """ # | | ????????????????????????????????????????# """ # | | ????????????????????????????????????????# # | | ????????????????????????????????????????# """ # | | ????????????????????????????????????????# """ # | | ????????????????????????????????????????# """ + | | ????????????????????????????????????????# # | | ????????????????????????????????????????########## | | ?????????????????????????????????????????????????# | | ?????????????????????????????????????????????????# | | ?????????????????????????????????????????????????# | | ?????????????????????????????????????????????????# | | ?????????????????????????????????????????????????# | | ??????????????????????###############????????????# | | ????"""???????????????# #???########## | | ????"G????????????????# ##### # | | ????"""???????????????# k + + # | | ??????????????????????# ##### # | | ??????????????????????# g #???# # | | ??????????????????????# @g #???# / | | ??????????????????????####/##########???# # | | ????????????????????????# % #???????????# # | | ????????????????????????# + ??????????# # | | ????????????????????????# # ?????????# # | | ????????????????????????# + "????????########## | | ????????????????????????# #? ""????????????????# | | ????????????????????????# #??"""???????????????# | | ????????????????????????# #???""???????????????# | | ???????????????????????? +???? ???????????????? | | ???????????????????????? #????????????????????? | | ???????????????????????? #????????????????????? | | ????????????????????????##+##????????????????????? | | ?????????????????????????? ??????????????????????? | | ?????????????????????????? ??????????????????????? | | ?????????????????????????? ??????????????????????? | | ?????????????????????*???? ??????????????????????? | | ?????????????????????????? ??????????????????????? | | ?????????????????????????? ??????????????????????? | | ?????????????????????????????????????????????????? | | ?????????????????????????????????????????????????? | | ?????????????????????????????????????????????????? | | ?????????????????????????????????????????????????? | | ?????????????????????????????????????????????????? | | ?????????????????????????????????????????????????? | +----------------------------------------------------+ Best States ------------- Heat Dissipation 41 Energy Generation 12 Energy Capacity 265 Matter Stores 300 Matter Capacity 300 Sight Range 21 Robot Scan Range 14 Terrain Scan Range 16 Terrain Scan Density 10 Armor Coverage 150 Evasion (%) 55 Item Schematics ----------------- None Robot Schematics ------------------ None Fabricated ------------ Nothing Repaired ---------- Nothing Alien Tech Used ----------------- None Achievements -------------- None Challenges ------------ None Game ------ Seed SwordDisintegrationStick Manual? 0 Play Time 00:25:02 Cumulative 195.5 hours Start 2025.10.02 @ 06:02:11 End 2025.10.02 @ 06:27:44 Sessions 1 Manual Loads 0 Difficulty Rogue Special Mode None Game No. 173 Rogue 173 Adventurer 0 Explorer 0 Win Type - Total 0 Types 0/0/0/0/0/0/0/0/0/0 Lore% 26 Gallery% 41 Achievement% 39 Wizard Run 0 Options --------- Layout 0 ASCII 1 Keyboard 0 Movement Mouse Keybinds 0 Fullscreen 1 Font 18/SmallcapsGlow Map View 76x50 Zoom Use 8% Tactical HUD 1 Map Filters NONE Filters NONE Steam 1 RUN: 5a924b04-b15e-41fe-93d9-ae9098bbc8fc